Cogmind - Beta 9.2 @@@ ROGUE MODE // 2019.12.12 @ 08:38:14 Player: Xii Result: Self-destructed Performance ------------- Evolutions (4) 2000 Regions Visited (16) 3200 Robots Destroyed (91) 455 Value Destroyed (2362) 2362 Prototype IDs (20) 400 Alien Tech Used (0) 0 Bonus (2722) 2722 TOTAL SCORE: 11139 Bonus ------- High Alert Combat Kills 49 Follower Combat Kills 1874 Entered Garrisons 200 Used RIF Installer 500 Met Imprinter 300 Met R17 at Cetus 500 Friendly Fire -701 Cogmind --------- Core Integrity 692/850 Matter 299/300 Energy 225/240 System Corruption 1% Temperature Cool (0) Movement Hovering (38) Location -6/Hub_04(d) Parts ------- > --- POWER (2) -------- Micro Fission Core Micro Fission Core > --- PROPULSION (4) --- Cooled Aerolev Unit Cooled Aerolev Unit Cooled Aerolev Unit Cooled Aerolev Unit > --- UTILITY (7) ------ Medium Storage Unit Enhanced Optical Array Improved Sensor Array Advanced Signal Interpreter Centrium Medium Armor Plating Improved System Shield Relay Coupler [NC] (28) > --- WEAPON (2) ------- Improved Datajack Phasing Sabre > --- INVENTORY (8) ---- Advanced Energy Well (800) Centrium Medium Armor Plating Force Field Improved Hacking Suite Relay Coupler [Programmer] (88) Advanced Variable Charge Gun Advanced Variable Charge Gun Improved KE Penetrator Peak State ------------ > --- POWER ------------ Micro Fission Core Micro Fission Core > --- PROPULSION ------- Cooled Aerolev Unit Cooled Aerolev Unit Cooled Aerolev Unit Cooled Aerolev Unit > --- UTILITY ---------- Medium Storage Unit Advanced Energy Well Enhanced Optical Array Advanced Signal Interpreter Centrium Medium Armor Plating Force Field Improved System Shield > --- WEAPON ----------- Advanced Variable Charge Gun Improved KE Penetrator > --- INVENTORY -------- Improved Sensor Array Centrium Medium Armor Plating Centrium Medium Armor Plating Relay Coupler [NC] Relay Coupler [Programmer] Advanced Variable Charge Gun Improved Datajack Phasing Sabre [Rating: 91] Favorites ----------- Power Micro Fission Core Engine Ion Engine Power Core Micro Fission Core Reactor Light Particle Reactor Propulsion Cooled Aerolev Unit Treads Light Treads Leg Aluminum Leg Hover Unit Cooled Aerolev Unit Flight Unit Improved Flight Unit Utility Advanced Signal Interpreter Device Long-range Terrain Scanner Storage Small Storage Unit Processor Advanced Signal Interpreter Hackware System Shield Protection Hardened Medium Armor Plating Weapon Greatsword Energy Gun Advanced Variable Charge Gun Energy Cannon Particle Cannon Ballistic Gun Assault Rifle Launcher Mini Grenade Launcher Special Weapon Remote Datajack Impact Weapon Maul Slashing Weapon Greatsword Piercing Weapon Heavy Pick Special Melee Weapon Improved Datajack Build | -11 -10 -10 -9 -8 -7 -7 -7 -7 -6 -6 -6 -6 -6 -6 -6 -6 ------- Run | Scr Mat Min Mat Mat Fac Low Low Zio Pro Fac Gar Fac Ext Cet Arc Hub Slots Evolved 8 | . . . 2 2 2 . . . . 2 . . . . . . Power 1 | . . . . . . . . . . 1 . . . . . . Propulsion 2 | . . . . 1 . . . . . 1 . . . . . . Utility 5 | . . . 2 1 2 . . . . . . . . . . . Weapon . | . . . . . . . . . . . . . . . . . Parts Attached 125 | 1 9 . 9 6 31 5 4 1 2 5 11 14 12 8 3 4 Power 11 | . 1 . 1 . 3 . . . . 1 1 2 . . 2 . Engine 2 | . 1 . . . 1 . . . . . . . . . . . Core 8 | . . . 1 . 2 . . . . 1 1 1 . . 2 . Reactor 1 | . . . . . . . . . . . . 1 . . . . Propulsion 21 | . 4 . 2 1 7 . . 1 . 4 . 1 . 1 . . Treads 2 | . 2 . . . . . . . . . . . . . . . Leg . | . . . . . . . . . . . . . . . . . Wheel . | . . . . . . . . . . . . . . . . . Hover 15 | . 2 . . . 6 . . 1 . 4 . 1 . 1 . . Flight 4 | . . . 2 1 1 . . . . . . . . . . . Utility 53 | 1 2 . 4 4 17 3 4 . . . 5 5 2 3 1 2 Device 19 | . . . 3 1 6 1 2 . . . 3 . 1 1 . 1 Storage 6 | 1 1 . . . 2 . . . . . . 1 . 1 . . Processor 8 | . 1 . . 3 2 . 1 . . . 1 . . . . . Hackware 5 | . . . . . 1 . . . . . 1 2 . . . 1 Protection 15 | . . . 1 . 6 2 1 . . . . 2 1 1 1 . Artifact . | . . . . . . . . . . . . . . . . . Weapon 40 | . 2 . 2 1 4 2 . . 2 . 5 6 10 4 . 2 Energy Gun 4 | . 1 . 1 . . . . . . . . . . 2 . . Energy Cannon 1 | . 1 . . . . . . . . . . . . . . . Ballistic Gun 3 | . . . . . . . . . . . 1 1 . 1 . . Ballistic Cannon . | . . . . . . . . . . . . . . . . . Launcher 7 | . . . . . 2 1 . . 1 . 2 1 . . . . Special Weapon 4 | . . . . . . . . . . . 1 3 . . . . Impact Weapon 3 | . . . 1 1 1 . . . . . . . . . . . Slashing Weapon 12 | . . . . . 1 1 . . 1 . 1 . 6 1 . 1 Piercing Weapon 1 | . . . . . . . . . . . . 1 . . . . Special Melee Weapon 5 | . . . . . . . . . . . . . 4 . . 1 Unidentified Prototypes 7 | . . . 2 . . . . . . 1 . . . 4 . . Parts Lost 8 | . 3 . . . 1 . . . . . 4 . . . . . Power 2 | . . . . . 1 . . . . . 1 . . . . . Propulsion 2 | . 2 . . . . . . . . . . . . . . . Utility 3 | . . . . . . . . . . . 3 . . . . . Weapon 1 | . 1 . . . . . . . . . . . . . . . Highest Loss Streak 3 | . 3 . . . 1 . . . . . 2 . . . . . Average Slot Usage (%) 94 | . 97 100 78 82 91 91 92 92 92 92 90 100 100 99 100 100 Engine 1 | . 14 14 4 . 2 . . . . . . . . . . . Core 7 | . . . 6 9 4 7 7 7 7 13 11 9 13 13 13 13 Treads 1 | . 9 28 9 . . . . . . . . . . . . . Hover 20 | . 7 . . . 19 23 23 23 23 25 26 26 26 26 26 26 Flight 1 | . . . 13 27 3 . . . . . . . . . . . Device 10 | . . . 11 11 16 14 15 15 15 13 8 1 . 1 6 10 Storage 6 | . 18 14 5 . . 7 7 7 7 6 6 6 6 8 13 8 Processor 15 | . 8 14 5 23 15 15 15 15 15 13 16 20 20 18 13 13 Hackware 6 | . . . . . 4 7 7 7 7 6 6 14 13 6 6 6 Protection 7 | . . . 10 9 12 7 7 7 7 6 5 3 5 9 6 6 Energy Gun 1 | . 8 . 1 . . . . . . . . . . 4 6 6 Ballistic Gun 1 | . 15 14 4 . . . . . . . . . . 5 6 . Launcher 1 | . . . . . 1 . . . . . 4 2 6 . . . Slashing Weapon 3 | . . . . . 3 6 7 7 6 6 1 . 4 1 . 5 Naked Turns . | . . . . . . . . . . . . . . . . . Heaviest Build 48 | 15 19 19 26 15 29 30 25 25 25 30 30 44 33 48 48 46 Greatest Support 60 | 20 40 40 40 18 36 36 36 37 37 60 60 60 60 60 60 60 Greatest Overweight (x) 1 | . 1 . 1 . 1 . . . . . . . . . . . Average Overweight (x) . | . . . . . . . . . . . . . . . . . Largest Inventory Capacity 10 | 8 10 8 8 4 6 6 6 6 6 6 6 8 8 8 8 8 Average Capacity 6 | 6 7 8 5 4 4 6 6 6 6 6 6 7 8 8 8 8 Most Carried 8 | 7 8 8 8 4 6 6 6 6 6 6 6 8 8 8 8 8 Average Carried 6 | 6 7 7 5 3 4 5 5 5 5 5 5 7 7 7 7 8 Final Capacity 8 | 8 8 8 4 4 6 6 6 6 6 6 6 8 8 8 8 8 Final Carried 8 | 7 8 8 4 3 6 6 6 6 6 6 6 8 8 8 8 8 Class Distribution -------------------- 46% | Scout 16% | Bothacker-Mutant 10% | Commander-Mutant 6% | Scavenger-Mutant 5% | Ninja 5% | Scavenger-Scout 5% | Mutant Dominant Class ---------------- Scavenger-Mutant | -10/Materials Scavenger-Mutant | -10/Mines Mutant | -9/Materials Scout | -8/Materials Scout | -7/Factory Scout | -7/Lower Caves Scout | -7/Lower Caves Scout | -7/Zion Scout | -6/Proximity Caves Scout | -6/Factory Scout | -6/Garrison Bothacker-Mutant | -6/Factory Bothacker-Mutant | -6/Extension Commander-Mutant | -6/Cetus Commander-Mutant | -6/Archives Scavenger-Scout | -6/Hub_04(d) Resources | -11 -10 -10 -9 -8 -7 -7 -7 -7 -6 -6 -6 -6 -6 -6 -6 -6 ----------- Run | Scr Mat Min Mat Mat Fac Low Low Zio Pro Fac Gar Fac Ext Cet Arc Hub Matter Collected 2174 | 246 138 . 41 . 667 72 149 19 8 92 151 308 130 70 44 39 Remotely 27 | . . . . . . . 27 . . . . . . . . . Salvage Created 3283 | 56 412 . 217 . 630 61 . . 20 . 189 908 589 84 . 117 Parts 174 | 3 21 . 15 . 31 8 . . 3 . 11 44 25 3 . 10 Haulers Intercepted 9 | . 2 . 1 . 4 . . . . . . 1 1 . . . Recyclers Shooed 3 | . . . . . 2 . . . . . . 1 . . . . Parts Field Recycled . | . . . . . . . . . . . . . . . . . Retrieved Matter . | . . . . . . . . . . . . . . . . . Parts Self-Destructed 11 | . . . . . . 6 5 . . . . . . . . . Prevented . | . . . . . . . . . . . . . . . . . Kills | -11 -10 -10 -9 -8 -7 -7 -7 -7 -6 -6 -6 -6 -6 -6 -6 -6 ------- Run | Scr Mat Min Mat Mat Fac Low Low Zio Pro Fac Gar Fac Ext Cet Arc Hub Combat Hostiles Destroyed 50 | . 5 . 6 . 5 6 . . 3 . 14 7 4 . . . Melee 6 | . . . . . . . . . . . . 2 4 . . . Guns 6 | . 4 . 2 . . . . . . . . . . . . . Cannons 5 | . 1 . 4 . . . . . . . . . . . . . AOE 33 | . . . . . 5 6 . . 3 . 14 5 . . . . Classes Destroyed 14 | 1 3 . 2 . 6 . . . . . 1 1 . . . . Worker 5 | . . . . . 5 . . . . . . . . . . . Builder 11 | . . . . . 2 . . . . . . 3 2 . . 4 Tunneler 2 | . . . . . 1 . . . . . . 1 . . . . Hauler 9 | . 2 . 1 . 4 . . . . . . 1 1 . . . Recycler 8 | 1 1 . . . 1 . . . . . . 4 1 . . . Operator 1 | . . . . . 1 . . . . . . . . . . . Watcher 4 | . 1 . . . 1 . . . . . . . 1 . . 1 Swarmer 26 | . . . 3 . . 6 . . 3 . 9 5 . . . . Grunt 14 | . 5 . 2 . 2 . . . . . 3 . 2 . . . Brawler 1 | . . . 1 . . . . . . . . . . . . . Duelist 1 | . . . . . 1 . . . . . . . . . . . Sentry 5 | . . . . . . . . . . . 2 1 2 . . . Hunter 1 | . . . . . . . . . . . . 1 . . . . Programmer 2 | . . . . . 2 . . . . . . . . . . . Best Kill Streak 8 | 1 4 . 7 . 5 6 . . 3 . 8 6 2 . . 3 Combat Bots Only 8 | . 2 . 6 . 4 6 . . 3 . 8 3 1 . . . Max Kills in Single Turn 4 | 1 1 . 1 . 3 3 . . 1 . 2 4 1 1 . 1 Gunslinging . | . . . . . . . . . . . . . . . . . Exploded 3 | . . . . . 3 3 . . 1 . 2 3 . . . . Melee 1 | . . . . . . . . . . . . 1 1 . . . Uniques/NPCs Destroyed 1 | . . . . . . . . . . . . . . 1 . . A7 (-6/Cetus) Combat | -11 -10 -10 -9 -8 -7 -7 -7 -7 -6 -6 -6 -6 -6 -6 -6 -6 -------- Run | Scr Mat Min Mat Mat Fac Low Low Zio Pro Fac Gar Fac Ext Cet Arc Hub Damage Taken 2598 | . 324 . 292 172 194 399 . . 181 . 713 63 206 11 34 9 Core 354 | . 24 . 81 58 27 6 . . . . 95 16 25 . 22 . Absorbed by Shields 204 | . . . . . . . . . . . . . 149 10 35 10 Core Remaining (%) 90 | 100 . 90 79 89 . . . . 95 . . . . . . . Volleys Fired 103 | 6 26 . 12 . 8 5 . . 3 . 20 22 . . 1 . Largest 2 | 2 2 . 2 . 1 1 . . 1 . 1 1 . . 2 . Hottest 115 | 40 88 . 88 . 30 30 . . 30 . 30 30 . . 115 . Shots Fired 142 | 12 47 . 23 . 8 5 . . 3 . 20 22 . . 2 . Gun 69 | 12 43 . 11 . . . . . . . 1 . . . 2 . Cannon 16 | . 4 . 12 . . . . . . . . . . . . . Launcher 37 | . . . . . 8 5 . . 3 . 19 2 . . . . Special 20 | . . . . . . . . . . . . 20 . . . . Kinetic 46 | 12 21 . 11 . . . . . . . 1 . . . 1 . Thermal 32 | . 4 . 12 . . . . . . . . 15 . . 1 . Explosive 37 | . . . . . 8 5 . . 3 . 19 2 . . . . Electromagnetic 22 | . 22 . . . . . . . . . . . . . . . Robot Hit Streak 9 | 8 6 . 7 . 5 . . . . . 9 6 . . 2 . Robot Miss Streak 5 | 1 2 . 2 . 1 1 . . . . 1 5 . . . . Penetration Max . | . . . . . . . . . . . . . . . . . Secondary Targets 1 | . 1 . . . . . . . . . . . . . . . Max Gunslinging Chain 1 | . 1 . . . . . . . . . . . . . . . Shots Hit Robots 187 | 10 27 . 15 . 29 . . . . . 16 23 54 2 2 9 Core Hits 134 | 2 12 . 9 . 28 8 . . 5 . 31 21 11 1 1 5 Critical Hits 6 | . . . . . 2 . . . . . . 1 2 . . 1 Critical Kills 4 | . . . . . 1 . . . . . . 1 1 . . 1 Critical Parts Destroyed 2 | . . . . . 1 . . . . . . . 1 . . . Melee Attacks 303 | . . . 19 . 106 12 6 . 27 6 1 29 80 2 . 15 Impact 62 | . . . 19 . 43 . . . . . . . . . . . Slashing 180 | . . . . . 63 12 6 . 27 6 1 . 49 2 . 14 Piercing 32 | . . . . . . . . . . . . 29 3 . . . Sneak Attacks 62 | . . . . . 12 . . . . . . 7 37 . . 6 Combat Hostiles 4 | . . . . . . . . . . . . 2 2 . . . Follow-up Attacks . | . . . . . . . . . . . . . . . . . Damage Inflicted 10070 | 140 410 . 268 . 2729 447 . . 262 . 1893 1370 1718 56 50 727 Guns 622 | 140 369 . 63 . . . . . . . . . . . 50 . Cannons 246 | . 41 . 205 . . . . . . . . . . . . . Explosions 3619 | . . . . . 645 447 . . 262 . 1893 372 . . . . Melee 5484 | . . . . . 2084 . . . . . . 899 1718 56 . 727 Ramming . | . . . . . . . . . . . . . . . . . Kinetic 314 | 140 86 . 63 . . . . . . . . . . . 25 . Thermal 370 | . 41 . 205 . . . . . . . . 99 . . 25 . Explosive 3619 | . . . . . 645 447 . . 262 . 1893 372 . . . . Electromagnetic 283 | . 283 . . . . . . . . . . . . . . . Impact 564 | . . . . . 564 . . . . . . . . . . . Slashing 3836 | . . . . . 1520 . . . . . . . 1533 56 . 727 Piercing 1084 | . . . . . . . . . . . . 899 185 . . . Highest Corruption 4 | . . . . 1 4 4 4 4 . . . 1 1 1 1 1 Average Corruption 2 | . . . . 1 4 4 4 4 . . . 1 1 1 1 1 Corruption Purged . | . . . . . . . . . . . . . . . . . Effects 44 | . . . . . 25 6 3 1 . . . 3 1 2 . 3 Message Errors 12 | . . . . . 4 3 1 . . . . 3 1 . . . Matter Fused 15 | . . . . . 12 1 1 1 . . . . . . . . Heat Flow Errors 3 | . . . . . 3 . . . . . . . . . . . Energy Discharges 6 | . . . . . 2 1 . . . . . . . 1 . 2 Data Loss (minor) 6 | . . . . . 3 1 1 . . . . . . 1 . . Targeting Errors 2 | . . . . . 1 . . . . . . . . . . 1 Overload Shots . | . . . . . . . . . . . . . . . . . Overflow Damage 1317 | . . . . . 653 7 . . 38 . 63 86 224 . . 246 Projectiles . | . . . . . . . . . . . . . . . . . Explosions 108 | . . . . . . 7 . . 38 . 63 . . . . . Melee 1209 | . . . . . 653 . . . . . . 86 224 . . 246 Knockbacks 1 | . . . . . 1 . . . . . . . . . . . Impact 1 | . . . . . 1 . . . . . . . . . . . Kinetic . | . . . . . . . . . . . . . . . . . Secondary . | . . . . . . . . . . . . . . . . . Self-Inflicted Damage 15 | . . . . . 15 . . . . . . . . . . . Shots 1 | . . . . . 1 . . . . . . . . . . . Rammed . | . . . . . . . . . . . . . . . . . Targets Rammed . | . . . . . . . . . . . . . . . . . Kicked . | . . . . . . . . . . . . . . . . . Crushed . | . . . . . . . . . . . . . . . . . Highest Temperature 276 | . 214 . 99 16 276 . . . 2 . 17 20 . . 57 . Average Temperature 73 | . 80 . 56 9 105 . . . 2 . 8 12 . . 34 . Received Heat Transfer 670 | . 180 . 87 90 48 21 . . . . 183 9 44 . 4 4 Effects 1 | . 1 . . . . . . . . . . . . . . . Energy Bleed 1 | . 1 . . . . . . . . . . . . . . . Siege Activations . | . . . . . . . . . . . . . . . . . Robots Corrupted . | . . . . . . . . . . . . . . . . . Combat Hostiles . | . . . . . . . . . . . . . . . . . Parts Fried 5 | . . . . . 4 . . . . . . . 1 . . . Impact Corruptions 4 | . . . . . 4 . . . . . . . . . . . Robots Melted . | . . . . . . . . . . . . . . . . . Combat Hostiles . | . . . . . . . . . . . . . . . . . Parts Melted 3 | . . . . . . . . . . . . 3 . . . . Heat Transferred 814 | . 74 . 370 . . . . . . . . 333 . . 37 . Parts Sabotaged . | . . . . . . . . . . . . . . . . . Parts Stolen . | . . . . . . . . . . . . . . . . . Parts Stripped . | . . . . . . . . . . . . . . . . . Power Chain Reactions . | . . . . . . . . . . . . . . . . . Missiles Intercepted . | . . . . . . . . . . . . . . . . . Alert | -11 -10 -10 -9 -8 -7 -7 -7 -7 -6 -6 -6 -6 -6 -6 -6 -6 ------- Run | Scr Mat Min Mat Mat Fac Low Low Zio Pro Fac Gar Fac Ext Cet Arc Hub Peak Influence 688 | 5 119 5 246 212 538 . . . . 26 421 688 475 575 284 240 Average Influence 248 | 2 38 5 127 161 319 . . . . 18 193 464 264 163 221 142 Maximum Alert Level 2 | . . . 1 1 2 . . . . . 2 2 2 2 1 1 Low Security (%) 44 | 100 100 100 93 72 25 . . . . 100 41 . 39 77 28 64 Level 1 31 | . . . 6 27 39 . . . . . 48 42 32 17 71 35 Level 2 23 | . . . . . 35 . . . . . 10 57 28 5 . . Level 3 . | . . . . . . . . . . . . . . . . . Level 4 . | . . . . . . . . . . . . . . . . . Level 5 . | . . . . . . . . . . . . . . . . . High Security . | . . . . . . . . . . . . . . . . . Max Security . | . . . . . . . . . . . . . . . . . Squads Dispatched 24 | . . . 2 2 10 . . . . . . 3 3 1 . 3 Investigation 16 | . . . 1 2 9 . . . . . . 1 2 1 . . Extermination 2 | . . . . . 1 . . . . . . 1 . . . . Reinforcement 6 | . . . 1 . . . . . . . . 1 1 . . 3 Assault . | . . . . . . . . . . . . . . . . . Garrison . | . . . . . . . . . . . . . . . . . Intercept . | . . . . . . . . . . . . . . . . . Construction Impeded 2 | . . . . . . . . . . . . 1 . . . 1 Haulers Reinforced . | . . . . . . . . . . . . . . . . . Stealth | -11 -10 -10 -9 -8 -7 -7 -7 -7 -6 -6 -6 -6 -6 -6 -6 -6 --------- Run | Scr Mat Min Mat Mat Fac Low Low Zio Pro Fac Gar Fac Ext Cet Arc Hub Distress Signals 29 | . . . . 1 1 . . . 23 . . 1 2 1 . . Communications Jammed . | . . . . . . . . . . . . . . . . . Distress Signals . | . . . . . . . . . . . . . . . . . Times Spotted 177 | . 10 . 21 17 25 19 . . 3 . 19 20 29 7 2 5 Peak Tracking Total 16 | . 3 . 14 16 6 11 . . 2 . 7 9 10 5 1 5 Tactical Retreats 15 | . 2 . 2 1 5 2 . . . . 1 . 2 . . . Traps | -11 -10 -10 -9 -8 -7 -7 -7 -7 -6 -6 -6 -6 -6 -6 -6 -6 ------- Run | Scr Mat Min Mat Mat Fac Low Low Zio Pro Fac Gar Fac Ext Cet Arc Hub Traps Triggered 9 | . . . 1 . 3 . . . . . 2 1 2 . . . Indirectly . | . . . . . . . . . . . . . . . . . Trap Hack Attempts . | . . . . . . . . . . . . . . . . . Triggered . | . . . . . . . . . . . . . . . . . Disarmed . | . . . . . . . . . . . . . . . . . Reprogrammed . | . . . . . . . . . . . . . . . . . Reused . | . . . . . . . . . . . . . . . . . Traps Extracted . | . . . . . . . . . . . . . . . . . Installed . | . . . . . . . . . . . . . . . . . Triggered . | . . . . . . . . . . . . . . . . . Machines | -11 -10 -10 -9 -8 -7 -7 -7 -7 -6 -6 -6 -6 -6 -6 -6 -6 ---------- Run | Scr Mat Min Mat Mat Fac Low Low Zio Pro Fac Gar Fac Ext Cet Arc Hub Machines Disabled 11 | . . . . . . 1 . . 3 . 2 . 1 1 3 . Max in Single Turn 1 | . . . . . . 1 . . 1 . 1 . . . 1 . Garrison Access 6 | . . . . . 3 . . . . . . 1 . . . 2 Garrison Relay 1 | . . . . . . . . . . . 1 . . . . . Machines Sabotaged . | . . . . . . . . . . . . . . . . . Garrisons Compromised . | . . . . . . . . . . . . . . . . . Overloaded Fab Kills . | . . . . . . . . . . . . . . . . . Fab Network Shutdowns 1 | . . . . . . . . . . . . 1 . . . . Hacking | -11 -10 -10 -9 -8 -7 -7 -7 -7 -6 -6 -6 -6 -6 -6 -6 -6 --------- Run | Scr Mat Min Mat Mat Fac Low Low Zio Pro Fac Gar Fac Ext Cet Arc Hub Machines Accessed 78 | . 3 . 4 3 30 1 1 1 . 3 . 10 10 4 . 8 Terminals 50 | . 3 . 3 3 13 1 . . . 2 . 5 10 4 . 6 Fabricators 8 | . . . . . 6 . . . . . . 2 . . . . Repair Stations . | . . . . . . . . . . . . . . . . . Recycling Units 6 | . . . . . 4 . . . . . . 2 . . . . Scanalyzers 4 | . . . 1 . 3 . . . . . . . . . . . Garrison Access 8 | . . . . . 4 . . . . 1 . 1 . . . 2 Total Hacks 308 | . 6 . 13 11 101 8 7 4 . 6 . 33 72 20 . 27 Successful 173 | . 3 . 8 6 50 6 7 4 . 2 . 18 41 13 . 15 Failed 133 | . 3 . 5 5 51 2 . . . 4 . 15 30 6 . 12 Catastrophic 22 | . 1 . 1 1 9 . . . . 2 . 5 2 . . 1 Database Lockouts 3 | . . . . . . . . . . . . . 2 1 . . Manual 160 | . 6 . 8 7 34 3 . . . 4 . 16 51 19 . 12 Terminals 219 | . 6 . 9 11 49 8 . . . 2 . 21 72 20 . 21 Fabricators 36 | . . . . . 29 . . . . . . 7 . . . . Repair Stations . | . . . . . . . . . . . . . . . . . Recycling Units 9 | . . . . . 6 . . . . . . 3 . . . . Scanalyzers 13 | . . . 4 . 9 . . . . . . . . . . . Garrison Access 20 | . . . . . 8 . . . . 4 . 2 . . . 6 Terminal Hacks 80 | . 3 . 4 4 15 5 7 4 . . . 6 20 7 . 5 Record 12 | . . . . . . 5 7 . . . . . . . . . Part Schematic 10 | . . . . . 3 . . 4 . . . 3 . . . . Robot Schematic 1 | . . . . . 1 . . . . . . . . . . . Robot Analysis 7 | . . . 1 . 3 . . . . . . . 1 . . 2 Prototype ID Bank 5 | . . . 1 . 2 . . . . . . . 1 1 . . Open Door 8 | . . . . . . . . . . . . . 7 1 . . Level Access Points 2 | . . . 1 1 . . . . . . . . . . . . Branch Access Points 1 | . . . . . 1 . . . . . . . . . . . Emergency Access Points 3 | . . . . . 2 . . . . . . . . . . 1 Terminal Index 2 | . . . . . . . . . . . . 1 1 . . . Fabricator Index 1 | . . . . . 1 . . . . . . . . . . . Unreport Threat 9 | . 1 . . . . . . . . . . 1 3 4 . . Locate Traps 5 | . 1 . . 1 . . . . . . . . 1 . . 2 Recall Investigation 4 | . . . . . 1 . . . . . . . 2 1 . . Recall Reinforcements 1 | . . . . . . . . . . . . . 1 . . . Hauler Manifests 3 | . 1 . . . . . . . . . . 1 1 . . . Registered Components 3 | . . . . 1 1 . . . . . . . 1 . . . Zone Layout 3 | . . . 1 1 . . . . . . . . 1 . . . Fabricator Hacks 11 | . . . . . 9 . . . . . . 2 . . . . Network Status 1 | . . . . . . . . . . . . 1 . . . . Load Schematic 6 | . . . . . 6 . . . . . . . . . . . Build 4 | . . . . . 3 . . . . . . 1 . . . . Repair Station Hacks . | . . . . . . . . . . . . . . . . . Recycling Unit Hacks 4 | . . . . . 1 . . . . . . 3 . . . . Report Inventory 2 | . . . . . 1 . . . . . . 1 . . . . Retrieve Components 2 | . . . . . . . . . . . . 2 . . . . Scanalyzer 13 | . . . 4 . 9 . . . . . . . . . . . Insert Component 6 | . . . 2 . 4 . . . . . . . . . . . Analyze 7 | . . . 2 . 5 . . . . . . . . . . . Garrison Access Hacks 9 | . . . . . 3 . . . . 1 . 1 . . . 4 Unlock Access 1 | . . . . . . . . . . 1 . . . . . . Seal Access 6 | . . . . . 3 . . . . . . 1 . . . 2 Coupler Status 2 | . . . . . . . . . . . . . . . . 2 Unauthorized Hacks 148 | . . . . 8 40 4 . . . 4 . 14 48 15 . 15 Terminals 46 | . . . . 2 8 1 . . . . . 3 21 6 . 5 Track 18 | . . . . . 4 . . . . . . 1 9 1 . 3 Assimilate 5 | . . . . 1 2 . . . . . . 1 1 . . . Botnet 18 | . . . . . 2 . . . . . . 1 9 4 . 2 Disrupt 3 | . . . . . . 1 . . . . . . 1 1 . . Operators 2 | . . . . 1 . . . . . . . . 1 . . . Fabricators 7 | . . . . . 4 . . . . . . 3 . . . . Report 1 | . . . . . . . . . . . . 1 . . . . Prioritize 1 | . . . . . . . . . . . . 1 . . . . Siphon 4 | . . . . . 4 . . . . . . . . . . . Haulers 1 | . . . . . . . . . . . . 1 . . . . Repair Stations . | . . . . . . . . . . . . . . . . . Recycling Units . | . . . . . . . . . . . . . . . . . Scanalyzers . | . . . . . . . . . . . . . . . . . Garrison Access 3 | . . . . . 1 . . . . 1 . . . . . 1 Watchers 3 | . . . . . 1 . . . . 1 . . . . . 1 Data Cores Recovered . | . . . . . . . . . . . . . . . . . Used . | . . . . . . . . . . . . . . . . . Hacking Detections 70 | . 3 . 4 3 28 1 . . . 3 . 8 9 4 . 7 Full Trace Events 15 | . . . 2 2 9 . . . . . . 1 1 . . . Feedback Events 1 | . . . . 1 . . . . . . . . . . . . Corruption 1 | . . . . 1 . . . . . . . . . . . . Feedback Blocked . | . . . . . . . . . . . . . . . . . Robot Schematics Acquired 1 | . . . . . 1 . . . . . . . . . . . Robots Built . | . . . . . . . . . . . . . . . . . Matter . | . . . . . . . . . . . . . . . . . Time . | . . . . . . . . . . . . . . . . . Total Robot Build Rating . | . . . . . . . . . . . . . . . . . Part Schematics Acquired 15 | . . . 2 . 6 . . 4 . . . 3 . . . . Parts Built 7 | . . . . . 5 . . . . . . 2 . . . . Matter 813 | . . . . . 557 . . . . . . 256 . . . . Time 336 | . . . . . 208 . . . . . . 128 . . . . Total Part Build Rating 42 | . . . . . 26 . . . . . . 16 . . . . Parts Repaired . | . . . . . . . . . . . . . . . . . Time . | . . . . . . . . . . . . . . . . . Parts Recycled . | . . . . . . . . . . . . . . . . . Recycled Matter . | . . . . . . . . . . . . . . . . . Retrieved Matter . | . . . . . . . . . . . . . . . . . Retrieved Components 3 | . . . . . . . . . . . . 3 . . . . Parts Scanalyzed 6 | . . . 2 . 4 . . . . . . . . . . . Part Schematics Acquired 5 | . . . 2 . 3 . . . . . . . . . . . Parts Damaged . | . . . . . . . . . . . . . . . . . Bothacking | -11 -10 -10 -9 -8 -7 -7 -7 -7 -6 -6 -6 -6 -6 -6 -6 -6 ------------ Run | Scr Mat Min Mat Mat Fac Low Low Zio Pro Fac Gar Fac Ext Cet Arc Hub Used RIF Installer 1 | . . . . . . . . . . . 1 . . . . . Robots Hacked 3 | . . . . . . . . . . . . 3 . . . . Non-combat 1 | . . . . . . . . . . . . 1 . . . . Combat 2 | . . . . . . . . . . . . 2 . . . . Robot Hacks Applied 4 | . . . . . . . . . . . . 4 . . . . find_recycling 1 | . . . . . . . . . . . . 1 . . . . ignore_parts 1 | . . . . . . . . . . . . 1 . . . . formatsys_high 2 | . . . . . . . . . . . . 2 . . . . Relay Couplers Released 4 | . . . . . . . . . . . 4 . . . . . Machine Destruction 4 | . . . . . . . . . . . 4 . . . . . Attached 3 | . . . . . . . . . . . 1 1 . . . 1 Robots Rewired 19 | . . . . . . . . . 2 . . . 17 . . . Allies Hacked . | . . . . . . . . . . . . . . . . . Hacks Repelled . | . . . . . . . . . . . . . . . . . Allies | -11 -10 -10 -9 -8 -7 -7 -7 -7 -6 -6 -6 -6 -6 -6 -6 -6 -------- Run | Scr Mat Min Mat Mat Fac Low Low Zio Pro Fac Gar Fac Ext Cet Arc Hub Total Allies 39 | . . . . . 4 . . . 2 3 . 3 27 . . . Largest Group 19 | . . . . . 3 . . . 2 5 5 3 19 18 13 10 Highest-Rated Group 669 | . . . . . 93 . . . 68 161 158 80 669 649 352 262 Highest-Rated Ally 156 | . . . . . 31 . . . 34 34 34 38 156 156 37 37 Total Orders 29 | . . . . . . . . . 2 2 . 6 4 12 . 3 STAY 9 | . . . . . . . . . . 1 . 2 . 5 . 1 GOTO 7 | . . . . . . . . . 1 . . 2 2 1 . 1 FOLLOW 13 | . . . . . . . . . 1 1 . 2 2 6 . 1 Ally Attacks 335 | . . . . . 32 . . . 9 . 19 5 119 86 29 36 Total Damage 7150 | . . . . . 570 . . . 228 . 264 170 2868 1735 592 723 Kills 56 | . . . . . 4 . . . 2 . 3 . 17 14 8 8 Allies Corrupted . | . . . . . . . . . . . . . . . . . Allies Melted . | . . . . . . . . . . . . . . . . . Intel | -11 -10 -10 -9 -8 -7 -7 -7 -7 -6 -6 -6 -6 -6 -6 -6 -6 ------- Run | Scr Mat Min Mat Mat Fac Low Low Zio Pro Fac Gar Fac Ext Cet Arc Hub Robot Analysis Total 7 | . . . 1 . 3 . . . . . . . 1 . . 2 Derelict Logs Recovered 6 | . . 1 . . . 1 . 2 2 . . . . . . . Drone Launches . | . . . . . . . . . . . . . . . . . Drone Recoveries . | . . . . . . . . . . . . . . . . . Exploration | -11 -10 -10 -9 -8 -7 -7 -7 -7 -6 -6 -6 -6 -6 -6 -6 -6 ------------- Run | Scr Mat Min Mat Mat Fac Low Low Zio Pro Fac Gar Fac Ext Cet Arc Hub Turns Passed 6047 | 34 376 85 217 69 1524 364 146 260 633 132 200 646 550 247 73 491 Spaces Moved 7048 | 10 209 52 170 198 1951 386 249 672 381 196 293 1121 504 223 60 373 Core . | . . . . . . . . . . . . . . . . . Treads 150 | . 69 52 29 . . . . . . . . . . . . . Legs 98 | 10 88 . . . . . . . . . . . . . . . Wheels . | . . . . . . . . . . . . . . . . . Hover 6031 | . 52 . . . 1521 386 249 672 381 196 293 1121 504 223 60 373 Flight 769 | . . . 141 198 430 . . . . . . . . . . . Fastest Speed 29 | 120 56 160 32 29 29 38 38 35 35 33 38 38 38 38 38 38 Average Speed 41 | 120 129 160 55 29 39 38 38 37 35 37 38 38 38 38 38 38 Slowest Speed 180 | 120 160 160 180 29 99 38 38 38 35 38 38 38 38 42 38 38 Overloaded Moves . | . . . . . . . . . . . . . . . . . Propulsion Burnouts . | . . . . . . . . . . . . . . . . . Robots Hopped 4 | . . . 3 . 1 . . . . . . . . . . . Cave-ins Triggered 2 | . . . . . . . . . 1 . . . 1 . . . Exploration Rate (%) 47 | 2 40 27 30 34 65 58 57 86 40 8 55 30 65 83 84 49 Regions Visited 16 Branch Regions 9 Pre-discovered Areas 2 | . . . . . . . 1 1 . . . . . . . . Known Exits Taken 13 | . . 1 1 1 1 1 1 1 1 1 . 1 1 1 1 . Unknown Exits Taken 2 | 1 1 . . . . . . . . . . . . . . . Scrap Searched 9 | . . 1 . . . 3 4 1 . . . . . . . . Spaces Dug 154 | . . . 12 . 60 9 6 . 20 6 1 11 23 . . 6 Terrain Destroyed 324 | . . . 12 . 119 41 6 . 43 6 43 25 23 . . 6 Melee 154 | . . . 12 . 60 9 6 . 20 6 1 11 23 . . 6 Projectile . | . . . . . . . . . . . . . . . . . AOE 170 | . . . . . 59 32 . . 23 . 42 14 . . . . Actions | -11 -10 -10 -9 -8 -7 -7 -7 -7 -6 -6 -6 -6 -6 -6 -6 -6 --------- Run | Scr Mat Min Mat Mat Fac Low Low Zio Pro Fac Gar Fac Ext Cet Arc Hub Total 9453 | 19 272 55 232 209 2496 572 287 683 823 242 359 1250 764 382 108 700 Wait 1625 | 2 2 . 10 . 347 163 25 5 371 28 23 34 130 136 41 308 Move 7024 | 9 208 51 164 197 1948 385 248 671 379 196 292 1120 502 222 59 373 Hop 3 | . . . 2 . 1 . . . . . . . . . . . Pick Up 79 | 1 13 2 3 5 23 . 1 3 . 4 5 11 2 5 1 . Fast Attach 38 | 1 4 . 3 . 10 1 2 . 1 1 3 5 2 4 1 . Attach 50 | . 5 . 5 6 15 1 1 1 1 4 6 3 . 1 1 . Detach 9 | . 1 . 1 . 3 1 . . 1 . 1 1 . . . . Swap 37 | . . . 1 . 6 3 1 . . . 2 6 10 3 1 4 Drop 103 | . 13 2 12 1 29 1 3 3 1 3 4 15 4 9 3 . Fire 103 | 6 26 . 12 . 8 5 . . 3 . 20 22 . . 1 . Melee 303 | . . . 19 . 106 12 6 . 27 6 1 29 80 2 . 15 Ram . | . . . . . . . . . . . . . . . . . Kick . | . . . . . . . . . . . . . . . . . Crush . | . . . . . . . . . . . . . . . . . Escape Stasis 10 | . . . . . . . . . 1 . 2 2 5 . . . Rewire 69 | . . . . . . . . . 38 . . 2 29 . . . Trap . | . . . . . . . . . . . . . . . . . Miscellaneous . | . . . . . . . . . . . . . . . . . Route ------- -11/Scrapyard -10/Materials -10/Mines (discovered 2 exits: *Mat x2) -9/Materials (discovered 3 exits: *Mat x3) -8/Materials (discovered 3 exits: *Fac x3) -7/Factory (discovered 6 exits: *Fac x3 / *Sto / *Low x2) -7/Lower Caves -7/Lower Caves (discovered 2 exits: Fac / *Zio) -7/Zion -6/Proximity Caves -6/Factory (discovered 5 exits: Fac x2 / Low x2 / Gar) -6/Garrison (discovered 2 exits: *Fac x2) -6/Factory (discovered 2 exits: *Fac / *Ext) -6/Extension (discovered 2 exits: *Fac / *Cet) -6/Cetus (discovered 2 exits: *Fac / *Arc) -6/Archives (discovered 2 exits: *Fac / *Hub) -6/Hub_04(d) (discovered 1 exit: *Fac) History --------- Turn | Location | Event 1 | -11/Scrapyard | Discovered new exit (range 3) 35 | -11/Scrapyard | Entered Materials 306 | -10/Materials | Discovered new exit (range 15) 311 | -10/Materials | Lost 3 parts (2n1w) 411 | -10/Materials | Entered Mines 435 | -10/Mines | Identified exit to Materials 456 | -10/Mines | Discovered exit to Materials (range 15) 496 | -10/Mines | Entered Materials 496 | -9/Materials | Evolved 2 slots: Utility x2 699 | -9/Materials | Identified exit to Materials 713 | -9/Materials | Entered another Materials area 713 | -8/Materials | Evolved 2 slots: Propulsion x1, Utility x1 736 | -8/Materials | Identified exit to Factory 782 | -8/Materials | Entered Factory 782 | -7/Factory | Evolved 2 slots: Utility x2 846 | -7/Factory | Discovered new exit (range 8) 884 | -7/Factory | Fabricated Imp. Flight Unit? 1329 | -7/Factory | Discovered new exit (range 8) 1339 | -7/Factory | Identified exit to Factory 1449 | -7/Factory | Identified exit to Storage 1449 | -7/Factory | Identified exit to Lower Caves 1595 | -7/Factory | Allied Derelicts emerged from ambush trap array 1704 | -7/Factory | Discovered exit to Factory (range 16) 1811 | -7/Factory | Fabricated Mic. Fission Core? 2044 | -7/Factory | Build established: Scout 2252 | -7/Factory | Fabricated Linear Gravjet? 2306 | -7/Factory | Entered Lower Caves 2527 | -7/Lower Caves | Learned Armory terminal intel 2527 | -7/Lower Caves | Learned Armory stockpile data 2527 | -7/Lower Caves | Learned location of 1 exit from Proximity Caves 2546 | -7/Lower Caves | Encountered a Warlord checkpoint 2561 | -7/Lower Caves | Learned Factory emergency access door positions 2607 | -7/Lower Caves | Discovered new exit (range 22) 2662 | -7/Lower Caves | Attracted the attention of an 0b10 checkpoint 2669 | -7/Lower Caves | Identified exit to Lower Caves 2670 | -7/Lower Caves | Entered another Lower Caves area 2677 | -7/Lower Caves | Discovered exit to Factory (range 15) 2678 | -7/Lower Caves | Encountered a Warlord checkpoint 2730 | -7/Lower Caves | Learned location of 1 exit from Factory 2730 | -7/Lower Caves | Learned 8 Factory zone layouts 2730 | -7/Lower Caves | Learned Research terminal intel 2815 | -7/Lower Caves | Discovered new exit (range 2) 2815 | -7/Lower Caves | Identified exit to Zion 2816 | -7/Lower Caves | Entered Zion 2836 | -7/Zion | System corruption cleaned by Quarantine Array 2915 | -7/Zion | Learned Factory terminal intel 2921 | -7/Zion | Learned 4 Factory zone layouts 2931 | -7/Zion | Received a hallucinogenic algorithm 2993 | -7/Zion | Found Relay Coupler [Programmer] 2996 | -7/Zion | Found Relay Coupler [Programmer] 2998 | -7/Zion | Found Relay Coupler [Programmer] 3039 | -7/Zion | Acquired unknown access codes intercepted by a Zionite 3064 | -7/Zion | Discovered new exit (range 15) 3069 | -7/Zion | Given A8's code to call for help 3075 | -7/Zion | Identified exit to Proximity Caves 3076 | -7/Zion | Entered Proximity Caves 3095 | -6/Proximity Caves | Learned Factory terminal intel 3496 | -6/Proximity Caves | Crushed by falling debris 3709 | -6/Proximity Caves | Entered Factory 3709 | -6/Factory | Accompanied by 2 allies 3709 | -6/Factory | Evolved 2 slots: Power x1, Propulsion x1 3710 | -6/Factory | Identified exit to Lower Caves 3711 | -6/Factory | Identified exit to Factory 3714 | -6/Factory | Loaded intel: 22 terminal locations 3777 | -6/Factory | Allied Derelicts emerged from ambush trap array 3802 | -6/Factory | Discovered exit to Factory (range 14) 3832 | -6/Factory | Identified exit to Garrison 3841 | -6/Factory | Entered Garrison 3841 | -6/Garrison | Accompanied by 5 allies 3887 | -6/Garrison | Triggered checkpoint 3896 | -6/Garrison | Triggered checkpoint 3896 | -6/Garrison | Triggered checkpoint 3946 | -6/Garrison | Destroyed 8 combat bots 3953 | -6/Garrison | Discovered new exit (range 21) 3960 | -6/Garrison | Identified exit to Factory 3988 | -6/Garrison | Discovered exit to Factory (range 20) 3997 | -6/Garrison | Installed Relay Interface Framework 4006 | -6/Garrison | Triggered checkpoint 4020 | -6/Garrison | Garrison Relay disabled 4041 | -6/Garrison | Entered Factory 4042 | -6/Factory | Loaded intel: 21 terminal locations 4109 | -6/Factory | Fabricated Lgt. Particle Reactor? 4244 | -6/Factory | Local fabrication network quarantined 4330 | -6/Factory | Build established: Bothacker-Mutant 4451 | -6/Factory | Discovered new exit (range 5) 4455 | -6/Factory | Identified exit to Extension 4597 | -6/Factory | Discovered exit to Factory (range 17) 4687 | -6/Factory | Entered Extension 4701 | -6/Extension | Rescued a captive Derelict 4701 | -6/Extension | Rescued a captive Derelict 4728 | -6/Extension | Rescued A7 4734 | -6/Extension | Rescued a captive Derelict 4734 | -6/Extension | Rescued a captive Derelict 4740 | -6/Extension | Central database locked down 4741 | -6/Extension | Rescued a captive Derelict 4747 | -6/Extension | Rescued a captive Derelict 4816 | -6/Extension | Rescued a captive Derelict 4889 | -6/Extension | Crushed by falling debris 5175 | -6/Extension | Rescued a captive Derelict 5192 | -6/Extension | Discovered exit to Factory (range 10) 5192 | -6/Extension | Discovered new exit (range 6) 5209 | -6/Extension | Identified exit to Cetus 5237 | -6/Extension | Disrupted transfer network 5237 | -6/Extension | Entered Cetus 5237 | -6/Cetus | Accompanied by 18 allies 5242 | -6/Cetus | Acquired a Cetus Manufacturing Module code from A7 5245 | -6/Cetus | Spotted Cetus Guard 5245 | -6/Cetus | Spotted Cetus Guard 5245 | -6/Cetus | Spotted Cetus Guard 5245 | -6/Cetus | Spotted Cetus Guard 5260 | -6/Cetus | Allies destroyed Cetus Guard 5262 | -6/Cetus | Allies destroyed Cetus Guard 5262 | -6/Cetus | Allies destroyed Cetus Guard 5265 | -6/Cetus | Allies destroyed Cetus Guard 5302 | -6/Cetus | Failed to start Cetus Manufacturing Module 5303 | -6/Cetus | Central database locked down 5312 | -6/Cetus | Discovered new exit (range 21) 5334 | -6/Cetus | Build established: Commander-Mutant 5355 | -6/Cetus | Spotted Cetus Guard 5355 | -6/Cetus | Spotted Cetus Guard 5355 | -6/Cetus | Spotted Cetus Guard 5355 | -6/Cetus | Spotted Cetus Guard 5367 | -6/Cetus | Allies destroyed Cetus Guard 5379 | -6/Cetus | Allies destroyed Cetus Guard 5389 | -6/Cetus | Allies destroyed Cetus Guard 5391 | -6/Cetus | Allies destroyed Cetus Guard 5400 | -6/Cetus | Destroyed A7 5401 | -6/Cetus | Extracted ID and sensor layout for unrecognized location from A7's data core 5413 | -6/Cetus | Discovered exit to Factory (range 21) 5418 | -6/Cetus | Met Revision 17 5445 | -6/Cetus | Identified exit to Archives 5484 | -6/Cetus | Entered Archives 5484 | -6/Archives | Accompanied by 13 allies 5506 | -6/Archives | Unable to access archive contents 5508 | -6/Archives | Discovered exit to Factory (range 13) 5521 | -6/Archives | Discovered new exit (range 13) 5526 | -6/Archives | Identified exit to Hub_04(d) 5557 | -6/Archives | Entered Hub_04(d) 5557 | -6/Hub_04(d) | Accompanied by 10 allies 5722 | -6/Hub_04(d) | Discovered exit to Factory (range 21) 6009 | -6/Hub_04(d) | Build established: Scavenger-Scout 6048 | -6/Hub_04(d) | Self-destructed Last Messages --------------- Map updated. Sneak attack on K-01 Serf. Destroyed Lgt. Ion Engine. Destroyed Wheel. Connecting with Terminal... Technician 5a reports 0b10 security level has risen to 1. Sneak attack on U-05 Engineer. Destroyed Terrain Scan Processor. Destroyed Welding Torch. Destroyed Wheel. <x2> ALERT: Construction progress impeded, dispatching reinforcements to local area. U-05 Engineer destroyed. <x2> Sneak attack on U-05 Engineer. U-05 Engineer destroyed. Technician 5a reports 0b10 security level has lowered to 0. Acquired 29 matter. K-01 Serf collects debris. Sneak attack on K-01 Serf. Jacked K-01 Serf... Map ----- +----------------------------------------------------+ | ????????????????????????????????????????? | | ????????????????????????????????????????? | | ????????????????????????????????????????? | | ????????????????????????????????????????? | | ????? ?????????????????????????????????? | | ?????